fUSD/lending_fUSD_20240729
["ID","MTS","AMOUNT","RATE_DAILY","PERIOD"]
[333596735,1722267045484,-588.66246525,0.0001099,6]
[333596736,1722267045495,-562.41626868,0.0001099,6]
[333596737,1722267045507,-444.96873947,0.0001099,6]
[333596738,1722267045518,-1310.01098762,0.0001099,6]
[333596739,1722267045530,-680.0,0.0001099,6]
[333596740,1722267045540,-680.84002523,0.0001099,6]
[333596741,1722267045552,-227070.84780434,0.0001099,6]
[333596742,1722267045564,-140353.29537604,0.0001099,6]
[333596743,1722267045574,-1003.6,0.0001099,2]
[333596744,1722267045583,-407.39137941,0.00010997,2]
[333596745,1722267045595,-968.84759795,0.00010997,2]
[333596746,1722267045604,-556.49732665,0.00010999,2]
[333596747,1722267045613,-500.0,0.00010999,2]
[333596750,1722267045622,-575.11126397,0.00010999,2]
[333596751,1722267045632,-291.69157309,0.00010999,2]
[333596752,1722267045641,-6699.67206587,0.00010999,2]
[333596753,1722267045650,-500.0,0.00010999,2]
[333596754,1722267045660,-157.94,0.00010999,2]
[333596755,1722267045669,-179.33923189,0.00010999,2]
[333596756,1722267045678,-500.0,0.00010999,2]
[333596757,1722267045687,-500.0,0.00010999,2]
[333596758,1722267045696,-500.0,0.00010999,2]
[333596759,1722267045705,-500.0,0.00010999,2]
[333596760,1722267045715,-500.0,0.00010999,2]
[333596761,1722267045725,-500.0,0.00010999,2]
[333596763,1722267045734,-166.62444058,0.00010999,2]
[333596766,1722267045746,-333.37555942,0.00010999,2]
[333596769,1722267045755,-500.0,0.00010999,2]
[333596772,1722267045765,-500.0,0.00010999,2]
[333596774,1722267045774,-500.0,0.00010999,2]
[333596776,1722267045783,-500.0,0.00010999,2]
[333596778,1722267045792,-500.0,0.00010999,2]
[333596779,1722267045802,-500.0,0.00010999,2]
[333596781,1722267045811,-500.0,0.00010999,2]
[333596784,1722267045821,-500.0,0.00010999,2]
[333596785,1722267045831,-500.0,0.00010999,2]
[333596787,1722267045840,-467.0,0.00010999,2]
[333596789,1722267045849,-495.686,0.00011,2]
[333596791,1722267045859,-811.0,0.00011,2]
[333596793,1722267045868,-450.0,0.00011,2]
[333596795,1722267045877,-621.0,0.00011,2]
[333596797,1722267045887,-286.765,0.00011,2]
[333596799,1722267045896,-550.0,0.00011,2]
[333596801,1722267045906,-150.0,0.00011,2]
[333596803,1722267045915,-2384.0,0.00011,2]
[333596805,1722267045924,-3285.0,0.00011,2]
[333596807,1722267045933,-1995.0,0.00011,2]
[333596810,1722267045942,-1301.0,0.00011,2]
[333596812,1722267045951,-1829.0,0.00011,2]
[333596814,1722267045960,-1254.0,0.00011,2]
[333596816,1722267045970,-421.464,0.00011,2]
[333596818,1722267045979,-1662.0,0.00011,2]
[333596820,1722267045988,-1202.0,0.00011,2]
[333596821,1722267045997,-683.309,0.00011,2]
[333596822,1722267046006,-324.138,0.00011,2]
[333596823,1722267046015,-5831.0,0.00011,2]
[333596824,1722267046024,-362.0,0.00011,2]
[333596826,1722267046036,-658.0,0.00011,2]
[333596828,1722267046045,-9456.41395586,0.00011,2]
[333596830,1722267046056,-32462.4423999,0.00011,2]
[333596833,1722267046070,-511.41496135,0.00011,2]
[333596835,1722267046081,-362.76485203,0.00011,2]
[333596837,1722267046092,-8783.19619374,0.00011,2]
[333596839,1722267046104,-13594.94689997,0.00011,2]
[333596841,1722267046115,-5563.90329342,0.00011,2]
[333596844,1722267046135,-942.76011678,0.000109,2]
[333596846,1722267046144,-5419.52793068,0.00011,2]
[333596848,1722267046155,-1584.77000004,0.00011,2]
[333596851,1722267046166,-44891.14363923,0.00011,2]
[333596853,1722267046178,-2704.89128419,0.00011,2]
[333596855,1722267046189,-522.23783259,0.00011,2]
[333596857,1722267046201,-270.76493749,0.00011,2]
[333596859,1722267046213,-1853.74141999,0.00011,2]
[333596861,1722267046226,-30121.65850716,0.00011,2]
[333596863,1722267046235,-98512.87153436,0.00011,2]
[333596866,1722267046246,-738.64818932,0.00011,2]
[333596868,1722267046257,-6911.7,0.00011,2]
[333596870,1722267046268,-2087.08,0.00011,2]
[333596872,1722267046279,-37364.32685642,0.00011,2]
[333596874,1722267046291,-12895.71765411,0.00011,2]
[333596876,1722267046304,-2064.46561289,0.00011,2]
[333596878,1722267046315,-868.925,0.00011,2]
[333596903,1722267179903,375.74360435,0.00025,90]
[333596904,1722267204376,1000.0,0.00024932,120]
[333596934,1722267557705,184.63,0.0001789,120]
[333596937,1722267667659,375850.35206354,0.00027,120]
[333596945,1722268007695,2000.0,0.00027,120]
[333596946,1722268106391,300.0,0.00025,60]
[333596948,1722268172399,222.33227133,0.00027,120]
[333596962,1722268232091,-150.86,7.577e-05,2]
[333596963,1722268232100,-133.69762474,8.219e-05,2]
[333596964,1722268232204,-528.47237526,8.219e-05,2]
[333596965,1722268232213,-169.55,8.219e-05,2]
[333596966,1722268232223,-600.0,8.22e-05,2]
[333596967,1722268232233,-600.0,9.042e-05,2]
[333596968,1722268232242,-565.58,9.169e-05,2]
[333596969,1722268232251,-250.0,9.203e-05,2]
[333596970,1722268232260,-300.0,9.266e-05,2]
[333596971,1722268232270,-300.0,9.266e-05,2]
[333596972,1722268232279,-2605.50072928,9.267e-05,2]
[333596973,1722268232291,-7394.49927072,9.267e-05,2]
[333596974,1722268232300,-250.0,9.382e-05,2]
[333596975,1722268232309,-159.69,9.44e-05,2]
[333596976,1722268232318,-1000.0,9.445e-05,2]
[333596982,1722268232506,-150.0,9.452e-05,2]
[333596983,1722268232528,-2000.0,9.471e-05,2]
[333596984,1722268232538,-2610.27,9.501e-05,2]
[333596985,1722268232551,-1981.99189209,9.66e-05,2]
[333596986,1722268232560,-150.0,9.669e-05,2]
[333596987,1722268232570,-32821.35,9.67e-05,2]
[333596988,1722268232580,-579.34,9.67e-05,2]
[333596989,1722268232590,-270.85,9.67e-05,2]
[333596990,1722268232600,-2380.42,9.67e-05,2]
[333596991,1722268232610,-300.53,9.67e-05,2]
[333596992,1722268232619,-791.9,9.67e-05,2]
[333596993,1722268232628,-2678.96,9.67e-05,2]
[333596994,1722268232639,-499.99,9.67e-05,2]
[333596995,1722268232649,-150.99,9.741e-05,2]
[333596996,1722268232658,-184.8855,9.764e-05,2]
[333596997,1722268232668,-600.0,9.864e-05,2]
[333596998,1722268232678,-1250.0,0.0001,2]
[333596999,1722268232687,-700.0,0.00010068,2]
[333597000,1722268232696,-500.0,0.00010068,2]
[333597001,1722268232706,-662.17,0.00010442,2]
[333597002,1722268232715,-12804.49110925,0.000105,2]
[333597003,1722268232724,-1000.0,0.00010626,2]
[333597004,1722268232734,-255.0,0.00010635,2]
[333597005,1722268232744,-1518.02409611,0.00010652,2]
[333597006,1722268232754,-3611.385,0.00010652,2]
[333597007,1722268232763,-96929.6147,0.00010653,2]
[333597008,1722268232772,-1549.4171,0.00010656,2]
[333597009,1722268232783,-1000.0,0.00010656,2]
[333597010,1722268232792,-13388.9337,0.00010671,2]
[333597011,1722268232802,-382.2977,0.00010671,2]
[333597012,1722268232811,-600.0,0.00010686,2]
[333597013,1722268232821,-7500.0,0.00010756,2]
[333597014,1722268232830,-100000.0,0.00010771,2]
[333597015,1722268232839,-6225.9273,0.00010771,2]
[333597016,1722268232849,-352.43506566,0.00010782,2]
[333597017,1722268232858,-352.43506564,0.00010811,2]
[333597018,1722268232867,-500.0,0.0001083,2]
[333597019,1722268232877,-500.0,0.00010838,2]
[333597020,1722268232886,-352.43506564,0.00010841,2]
[333597021,1722268232896,-500.0,0.00010847,2]
[333597022,1722268232906,-95496.11971676,0.00010849,2]
[333597023,1722268232915,-5981.6493,0.00010849,2]
[333597024,1722268232925,-500.0,0.00010856,2]
[333597025,1722268232934,-36534.95516056,0.00010856,2]
[333597026,1722268232979,-265.04471068,0.00010856,2]
[333597027,1722268232991,-1284.22498,0.00010856,2]
[333597028,1722268233002,-6075.0,0.00010856,2]
[333597029,1722268233014,-700.0,0.00010856,2]
[333597030,1722268233026,-2327.27670963,0.00010856,2]
[333597035,1722268238036,-48309.61815589,0.00010856,2]
[333597036,1722268238046,-7187.70657515,0.00010857,2]
[333597037,1722268238056,-7187.70657515,0.00010859,2]
[333597038,1722268238067,-7187.70657515,0.00010863,2]
[333597039,1722268238076,-500.0,0.00010865,2]
[333597040,1722268238086,-352.43506564,0.0001087,2]
[333597041,1722268238096,-500.0,0.00010874,2]
[333597042,1722268238105,-13095.31152349,0.00010875,2]
[333597043,1722268238117,-1410.80311885,0.00010875,2]
[333597044,1722268238147,-556.53182487,0.00010875,2]
[333597045,1722268238205,-8454.59295004,0.00010875,2]
[333597046,1722268238216,-10007.28203,0.00010875,2]
[333597047,1722268238228,-2542.46722963,0.00010875,2]
[333597048,1722268238267,-22488.07434774,0.00010875,2]
[333597049,1722268238278,-1443.24217056,0.00010875,2]
[333597219,1722268240064,-1086.34670665,0.00010875,2]
[333597221,1722268240076,-680.912228,0.00010875,2]
[333597223,1722268240088,-1027.77499991,0.00010875,2]
[333597225,1722268240099,-837.74750378,0.00010875,2]
[333597228,1722268240111,-31865.03308324,0.00010875,2]
[333597230,1722268240121,-500.0,0.00010882,2]
[333597232,1722268240130,-203.58056186,0.00010889,2]
[333597234,1722268240139,-700.0,0.0001089,2]
[333597236,1722268240149,-500.0,0.00010891,2]
[333597238,1722268240159,-203.58056186,0.00010894,2]
[333597240,1722268240169,-179.77556321,0.00010899,2]
[333597242,1722268240178,-352.43506564,0.00010899,2]
[333597244,1722268240188,-165.33891119,0.00010899,2]
[333597246,1722268240197,-341.51320917,0.00010899,2]
[333597248,1722268240206,-203.58056186,0.00010899,2]
[333597250,1722268240216,-2372.681125,0.00010899,2]
[333597251,1722268240225,-2372.68112498,0.000109,2]
[333597253,1722268240235,-1531.796945,0.000109,2]
[333597255,1722268240244,-500.0,0.000109,2]
[333597257,1722268240253,-1478.0,0.000109,2]
[333597259,1722268240263,-2372.68112498,0.000109,2]
[333597261,1722268240272,-221.07,0.00010904,3]
[333597263,1722268240282,-500.0,0.00010911,2]
[333597265,1722268240292,-500.0,0.00010912,2]
[333597267,1722268240302,-169.58303755,0.00010916,2]
[333597269,1722268240311,-21419.03477024,0.00010919,2]
[333597272,1722268240323,-12870.69066428,0.00010919,2]
[333597274,1722268240334,-3744.76175467,0.00010919,2]
[333597276,1722268240345,-6047.89999998,0.00010919,2]
[333597278,1722268240357,-359.58943198,0.00010919,2]
[333597280,1722268240368,-1878.64,0.00010919,2]
[333597282,1722268240380,-535.85788251,0.00010919,2]
[333597284,1722268240391,-1534.61932229,0.00010919,2]
[333597287,1722268240402,-31638.91440504,0.00010919,2]
[333597289,1722268240412,-500.0,0.00010958,2]
[333597291,1722268240421,-471.67,0.00010958,2]
[333597293,1722268240430,-204.53453048,0.00010958,2]
[333597295,1722268240440,-500.0,0.00010958,2]
[333597296,1722268240449,-500.0,0.00010958,2]
[333597298,1722268240458,-500.0,0.00010958,2]
[333597300,1722268240468,-500.0,0.00010958,2]
[333597302,1722268240478,-253.92596233,0.00010958,2]
[333597304,1722268240488,-500.0,0.00010958,2]
[333597306,1722268240498,-500.0,0.00010958,2]
[333597308,1722268240507,-500.0,0.00010958,2]
[333597310,1722268240516,-500.0,0.00010958,2]
[333597312,1722268240525,-500.0,0.00010958,2]
[333597314,1722268240535,-500.0,0.00010958,2]
[333597316,1722268240546,-500.0,0.00010958,2]
[333597318,1722268240560,-500.0,0.00010958,2]
[333597320,1722268240569,-856.97,0.00010958,2]
[333597322,1722268240578,-399.39,0.00010958,2]
[333597324,1722268240589,-500.0,0.00010958,2]
[333597326,1722268240603,-500.0,0.00010958,2]
[333597328,1722268240614,-500.0,0.00010958,2]
[333597330,1722268240623,-514.44992318,0.00010958,2]
[333597332,1722268240635,-500.0,0.00010958,2]
[333597334,1722268240646,-515.6,0.00010958,2]
[333597336,1722268240655,-500.0,0.00010958,2]
[333597338,1722268240665,-500.0,0.00010958,2]
[333597340,1722268240675,-830.66,0.00010958,2]
[333597342,1722268240685,-830.66,0.00010958,2]
[333597344,1722268240695,-500.0,0.00010958,2]
[333597346,1722268240704,-500.0,0.00010958,2]
[333597348,1722268240714,-500.0,0.00010958,2]
[333597350,1722268240723,-500.0,0.00010958,2]
[333597352,1722268240733,-414.29333148,0.00010958,2]
[333597354,1722268240745,-85.70666852,0.00010958,2]
[333597356,1722268240754,-500.0,0.00010958,2]
[333597358,1722268240764,-500.0,0.00010958,2]
[333597360,1722268240774,-274.88044949,0.00010958,2]
[333597362,1722268240788,-225.11955051,0.00010958,2]
[333597364,1722268240799,-500.0,0.00010958,2]
[333597366,1722268240808,-500.0,0.00010958,2]
[333597368,1722268240818,-500.0,0.00010958,2]
[333597370,1722268240827,-500.0,0.00010958,2]
[333597372,1722268240837,-500.0,0.00010958,2]
[333597374,1722268240846,-1000.0,0.00010959,2]
[333597376,1722268240855,-500.0,0.00010989,2]
[333597378,1722268240864,-500.0,0.00010989,2]
[333597380,1722268240874,-500.0,0.00010989,2]
[333597382,1722268240883,-500.0,0.00010989,2]
[333597384,1722268240892,-500.0,0.00010989,2]
[333597386,1722268240902,-500.0,0.00010989,2]
[333597388,1722268240911,-463.4308197,0.00010989,2]
[333597390,1722268240920,-500.0,0.00010989,2]
[333597392,1722268240929,-492.43919691,0.00010989,2]
[333597394,1722268240941,-7.56080309,0.00010989,2]
[333597396,1722268240951,-312.54217568,0.00010989,2]
[333597398,1722268240962,-187.45782432,0.00010989,2]
[333597400,1722268240972,-193.09427388,0.00010989,2]
[333597402,1722268240984,-306.90572612,0.00010989,2]
[333597404,1722268240994,-856.97,0.00010989,2]
[333597406,1722268241003,-655.02427388,0.00010989,2]
[333597784,1722268244725,-201.94572612,0.00010989,2]
[333597786,1722268244735,-500.0,0.00010989,2]
[333597788,1722268244745,-500.0,0.00010989,2]
[333597791,1722268244755,-283.10446751,0.00010998,2]
[333597793,1722268244764,-500.0,0.00010998,2]
[333597794,1722268244773,-500.0,0.00010998,2]
[333597796,1722268244783,-500.0,0.00010998,2]
[333597798,1722268244793,-500.0,0.00010998,2]
[333597800,1722268244802,-224.93884824,0.00010998,2]
[333597802,1722268244812,-500.0,0.00010998,2]
[333597804,1722268244821,-500.0,0.00010998,2]
[333597806,1722268244830,-500.0,0.00010998,2]
[333597808,1722268244839,-380.96464881,0.00010998,2]
[333597811,1722268244851,-94.29535119,0.00010998,2]
[333597813,1722268244860,-830.66,0.00010998,2]
[333597815,1722268244869,-656.61621309,0.00010998,2]
[333597817,1722268244880,-174.04378691,0.00010998,2]
[333597819,1722268244890,-830.66,0.00010998,2]
[333597821,1722268244899,-347.37828133,0.00010998,2]
[333597823,1722268244911,-483.28171867,0.00010998,2]
[333597825,1722268244920,-559.25208649,0.00010998,2]
[333597828,1722268244939,-271.40791351,0.00010998,2]
[333597830,1722268244949,-830.66,0.00010998,2]
[333597832,1722268244958,-830.66,0.00010998,2]
[333597833,1722268244967,-830.66,0.00010998,2]
[333597834,1722268244977,-830.66,0.00010998,2]
[333597835,1722268244986,-830.66,0.00010998,2]
[333597836,1722268244995,-830.66,0.00010998,2]
[333597837,1722268245005,-830.66,0.00010998,2]
[333597838,1722268245014,-830.66,0.00010998,2]
[333597839,1722268245023,-830.66,0.00010998,2]
[333597840,1722268245033,-830.66,0.00010998,2]
[333597841,1722268245042,-830.66,0.00010998,2]
[333597842,1722268245052,-830.66,0.00010998,2]
[333597843,1722268245061,-830.66,0.00010998,2]
[333597844,1722268245071,-830.66,0.00010998,2]
[333597845,1722268245080,-830.66,0.00010998,2]
[333597847,1722268245089,-830.66,0.00010998,2]
[333597849,1722268245098,-830.73595149,0.00010998,2]
[333597851,1722268245108,-500.0,0.00010998,2]
[333597853,1722268245117,-500.0,0.00010998,2]
[333597855,1722268245126,-500.0,0.00010998,2]
[333597857,1722268245137,-324.2961654,0.00010998,2]
[333597859,1722268245148,-175.7038346,0.00010998,2]
[333597861,1722268245157,-500.0,0.00010998,2]
[333597863,1722268245166,-500.0,0.00010998,2]
[333597865,1722268245175,-500.0,0.00010998,2]
[333597867,1722268245184,-500.0,0.00010998,2]
[333597869,1722268245194,-500.0,0.00010998,2]
[333597871,1722268245203,-500.0,0.00010998,2]
[333597873,1722268245212,-500.0,0.00010998,2]
[333597875,1722268245221,-500.0,0.00010998,2]
[333597877,1722268245231,-500.0,0.00010998,2]
[333597879,1722268245240,-500.0,0.00010998,2]
[333597881,1722268245249,-500.0,0.00010998,2]
[333597883,1722268245259,-500.0,0.00010998,2]
[333597885,1722268245269,-500.0,0.00010998,2]
[333597887,1722268245278,-500.0,0.00010998,2]
[333597889,1722268245287,-500.0,0.00010998,2]
[333597890,1722268245297,-172.01047055,0.00010998,2]
[333597892,1722268245306,-500.0,0.00010998,2]
[333597894,1722268245317,-500.0,0.00010998,2]
[333597896,1722268245326,-500.0,0.00010998,2]
[333597898,1722268245335,-500.0,0.00010998,2]
[333597900,1722268245344,-500.0,0.00010998,2]
[333597902,1722268245353,-500.0,0.00010998,2]
[333597903,1722268245362,-500.0,0.00010998,2]
[333597905,1722268245372,-500.0,0.00010998,2]
[333597907,1722268245381,-500.0,0.00010998,2]
[333597909,1722268245390,-248.45801407,0.00010998,2]
[333597911,1722268245399,-98.79750082,0.00010998,2]
[333597914,1722268245411,-401.20249918,0.00010998,2]
[333597916,1722268245420,-500.0,0.00010998,2]
[333597917,1722268245429,-129.799228,0.00010998,2]
[333597939,1722268245631,-370.200772,0.00010998,2]
[333597941,1722268245643,-500.0,0.00010998,2]
[333597943,1722268245652,-500.0,0.00010998,2]
[333597945,1722268245661,-500.0,0.00010998,2]
[333597947,1722268245671,-500.0,0.00010998,2]
[333597949,1722268245681,-500.0,0.00010998,2]
[333597951,1722268245690,-500.0,0.00010998,2]
[333597953,1722268245700,-199.53379702,0.00010998,2]
[333597955,1722268245709,-500.0,0.00010998,2]
[333597957,1722268245718,-500.0,0.00010998,2]
[333597959,1722268245728,-500.0,0.00010998,2]
[333597961,1722268245738,-500.0,0.00010998,2]
[333597963,1722268245750,-500.0,0.00010998,2]
[333597965,1722268245759,-196.1868,0.00010998,2]
[333597967,1722268245769,-603.20401989,0.00010998,2]
[333597969,1722268245778,-594.0,0.00010999,2]
[333597972,1722268245787,-2827.19751109,0.00010999,2]
[333597975,1722268245802,-3722.0,0.00010999,2]
[333597979,1722268245831,-67340.68,0.00010999,2]
[333597982,1722268245842,-2109.7800008,0.00010999,2]
[333597984,1722268245854,-58611.45622014,0.00010999,2]
[333597986,1722268245864,-1893.74706055,0.00010999,2]
[333597989,1722268245874,-38324.58536432,0.00010999,2]
[333597991,1722268245885,-532.35328105,0.00010999,2]
[333597993,1722268245897,-673.98,0.00010999,2]
[333597998,1722268245919,-3137.71981106,0.00010999,2]
[333598003,1722268245931,-950.241585,0.00010999,2]
[333598006,1722268245946,-2983.2103724,0.00010999,2]
[333598025,1722268246065,-487.83815386,0.00010999,2]
[333598037,1722268246121,-2092.81734162,0.00010999,2]
[333598041,1722268246134,-201684.26793401,0.00010999,2]
[333598051,1722268246182,-681.95,0.00010999,2]
[333598070,1722268246349,-743.62883177,0.00010999,2]
[333598089,1722268246529,-256691.3354523,0.00010999,2]
[333598327,1722268401958,1000.0,0.00024932,120]
[333598350,1722268831812,150.0,0.00024814,120]
[333598351,1722268950762,150.0,0.00025163,120]
[333598357,1722269175503,329.76997959,0.00027,120]
[333598358,1722269205505,329.76997959,0.00027,120]
[333598362,1722269374716,2037.8271167,0.00027,120]
[333598365,1722269414234,1000.0,0.00027,120]
[333598366,1722269421397,1003.0,0.00027,120]
[333598367,1722269427786,1016.61382459,0.00027,120]
[333598375,1722269432191,-656.62,8.219e-05,2]
[333598376,1722269432201,-438.97982347,8.219e-05,2]
[333598377,1722269432210,-500.0,8.22e-05,2]
[333598378,1722269432220,-500.0,9.042e-05,2]
[333598379,1722269432230,-2086.77,9.457e-05,2]
[333598380,1722269432239,-2186.610843,9.538e-05,2]
[333598381,1722269432248,-250.0,9.587e-05,2]
[333598382,1722269432258,-219.55,9.622e-05,2]
[333598383,1722269432268,-9139.18,9.636e-05,2]
[333598384,1722269432278,-600.0,9.679e-05,2]
[333598385,1722269432287,-156.73,9.763e-05,2]
[333598386,1722269432297,-912.04,9.763e-05,2]
[333598387,1722269432306,-168.69,9.832e-05,2]
[333598388,1722269432315,-499.99,9.832e-05,2]
[333598389,1722269432324,-500.0,9.864e-05,2]
[333598390,1722269432334,-9999.99,9.864e-05,2]
[333598391,1722269432343,-999.99,9.934e-05,2]
[333598392,1722269432352,-911.09,9.934e-05,2]
[333598393,1722269432362,-400.0,9.993e-05,2]
[333598394,1722269432371,-1250.0,0.0001,2]
[333598395,1722269432380,-500.0,0.00010068,2]
[333598396,1722269432389,-600.0,0.00010068,2]
[333598397,1722269432398,-178.16,0.00010098,2]
[333598398,1722269432408,-656.62,0.00010453,2]
[333598399,1722269432417,-600.0,0.00010455,2]
[333598400,1722269432426,-150.0,0.00010499,2]
[333598401,1722269432435,-12804.49110925,0.000105,2]
[333598402,1722269432445,-2022.9148,0.00010756,2]
[333598403,1722269432454,-600.0,0.00010889,2]
[333598404,1722269432463,-600.0,0.0001089,2]
[333598405,1722269432473,-600.0,0.00010891,2]
[333598406,1722269432482,-1000.0,0.00010899,2]
[333598407,1722269432490,-7852.7313,0.00010899,2]
[333598408,1722269432499,-7500.0,0.00010899,2]
[333598409,1722269432508,-223.73095028,0.00010899,2]
[333598410,1722269432519,-1670.32623467,0.00010899,2]
[333598411,1722269432528,-345.62,0.00010904,3]
[333598412,1722269432537,-500.0,0.00010958,2]
[333598413,1722269432546,-500.0,0.00010958,2]
[333598414,1722269432555,-500.0,0.00010958,2]
[333598415,1722269432565,-500.0,0.00010958,2]
[333598416,1722269432574,-500.0,0.00010958,2]
[333598417,1722269432583,-500.0,0.00010958,2]
[333598418,1722269432593,-500.0,0.00010958,2]
[333598419,1722269432602,-500.0,0.00010958,2]
[333598420,1722269432611,-414.49,0.00010958,2]
[333598421,1722269432620,-749.85,0.00010958,2]
[333598422,1722269432630,-749.85,0.00010958,2]
[333598423,1722269432639,-749.85,0.00010958,2]
[333598424,1722269432648,-500.0,0.00010958,2]
[333598425,1722269432657,-500.0,0.00010958,2]
[333598426,1722269432667,-500.0,0.00010958,2]
[333598427,1722269432676,-500.0,0.00010958,2]
[333598428,1722269432685,-500.0,0.00010958,2]
[333598429,1722269432694,-489.9833952,0.00010958,2]
[333598430,1722269432703,-429.60150323,0.00010958,2]
[333598431,1722269432719,-70.39849677,0.00010958,2]
[333598432,1722269432729,-368.5813267,0.00010958,2]
[333598433,1722269432739,-131.4186733,0.00010958,2]
[333598434,1722269432748,-507.26963105,0.00010959,2]
[333598435,1722269432887,-492.73036895,0.00010959,2]
[333598436,1722269432897,-2393.63109666,0.00010996,2]
[333598437,1722269432907,-500.0,0.00010998,2]
[333598438,1722269432921,-500.0,0.00010998,2]
[333598439,1722269432930,-500.0,0.00010998,2]
[333598440,1722269432940,-500.0,0.00010998,2]
[333598441,1722269432950,-498.5020979,0.00010998,2]
[333598442,1722269432959,-500.0,0.00010998,2]
[333598443,1722269432968,-500.0,0.00010998,2]
[333598444,1722269432978,-500.0,0.00010998,2]
[333598445,1722269432988,-500.0,0.00010998,2]
[333598446,1722269432998,-500.0,0.00010998,2]
[333598448,1722269433008,-500.0,0.00010998,2]
[333598450,1722269433019,-500.0,0.00010998,2]
[333598451,1722269433028,-209.69236708,0.00010998,2]
[333598452,1722269433037,-500.0,0.00010998,2]
[333598453,1722269433047,-500.0,0.00010998,2]
[333598454,1722269433056,-500.0,0.00010998,2]
[333598455,1722269433065,-500.0,0.00010998,2]
[333598456,1722269433074,-500.0,0.00010998,2]
[333598457,1722269433084,-500.0,0.00010998,2]
[333598458,1722269433093,-262.43,0.00010998,2]
[333598459,1722269433102,-500.0,0.00010998,2]
[333598460,1722269433112,-500.0,0.00010998,2]
[333598461,1722269433122,-500.0,0.00010998,2]
[333598462,1722269433131,-500.0,0.00010998,2]
[333598463,1722269433141,-500.0,0.00010998,2]
[333598464,1722269433150,-500.0,0.00010998,2]
[333598465,1722269433159,-500.0,0.00010998,2]
[333598466,1722269433168,-500.0,0.00010998,2]
[333598467,1722269433178,-500.0,0.00010998,2]
[333598468,1722269433187,-414.95299915,0.00010998,2]
[333598469,1722269433197,-749.85,0.00010998,2]
[333598470,1722269433207,-749.85,0.00010998,2]
[333598471,1722269433216,-749.85,0.00010998,2]
[333598472,1722269433226,-749.85,0.00010998,2]
[333598473,1722269433235,-749.85,0.00010998,2]
[333598474,1722269433245,-749.85,0.00010998,2]
[333598475,1722269433254,-749.85,0.00010998,2]
[333598476,1722269433264,-749.85,0.00010998,2]
[333598477,1722269433273,-749.85,0.00010998,2]
[333598478,1722269433283,-749.85,0.00010998,2]
[333598479,1722269433292,-749.85,0.00010998,2]
[333598480,1722269433301,-749.85,0.00010998,2]
[333598481,1722269433312,-749.85,0.00010998,2]
[333598482,1722269433321,-749.85,0.00010998,2]
[333598483,1722269433330,-749.85,0.00010998,2]
[333598484,1722269433339,-749.85,0.00010998,2]
[333598485,1722269433349,-749.85,0.00010998,2]
[333598486,1722269433358,-749.85,0.00010998,2]
[333598487,1722269433367,-749.85,0.00010998,2]
[333598488,1722269433376,-749.85,0.00010998,2]
[333598489,1722269433385,-749.911482,0.00010998,2]
[333598490,1722269433394,-500.0,0.00010998,2]
[333598491,1722269433404,-500.0,0.00010998,2]
[333598492,1722269433413,-500.0,0.00010998,2]
[333598493,1722269433422,-500.0,0.00010998,2]
[333598494,1722269433431,-500.0,0.00010998,2]
[333598495,1722269433440,-500.0,0.00010998,2]
[333598496,1722269433453,-500.0,0.00010998,2]
[333598497,1722269433462,-500.0,0.00010998,2]